fUSD/lending_fUSD_20260625
["ID","MTS","AMOUNT","RATE_DAILY","PERIOD"]
[426407247,1782354645000,-500.0,0.00014999,2]
[426407265,1782354645000,-1281.17,0.00014999,2]
[426407256,1782354645000,-788.77,0.00014999,2]
[426407263,1782354645000,-1281.17,0.00014999,2]
[426407267,1782354645000,-1281.21379645,0.00014999,2]
[426407273,1782354645000,-849.67500685,0.00014999,2]
[426407288,1782354645000,-665.79924178,0.00015,2]
[426407286,1782354645000,-151.0,0.00011377,2]
[426407284,1782354645000,-983563.6276391,0.00015,2]
[426407282,1782354645000,-224.26856726,0.00011367,2]
[426407281,1782354645000,-883.35754005,0.00015,2]
[426407279,1782354645000,-5487520.77565129,0.00015,2]
[426407277,1782354645000,-3482251.18173813,0.00015,2]
[426407276,1782354645000,-300.0,0.00014999,2]
[426407283,1782354645000,-224.26856726,0.00014986,2]
[426407274,1782354645000,-308.38466767,0.00014999,2]
[426407278,1782354645000,-914.45,0.00015,2]
[426407270,1782354645000,-849.61,0.00014999,2]
[426407287,1782354645000,-2349.3252123,0.00015,2]
[426407266,1782354645000,-1281.17,0.00014999,2]
[426407269,1782354645000,-849.61,0.00014999,2]
[426407272,1782354645000,-849.61,0.00014999,2]
[426407268,1782354645000,-849.61,0.00014999,2]
[426407275,1782354645000,-227.4541655,0.00014999,2]
[426407271,1782354645000,-849.61,0.00014999,2]
[426407289,1782354646000,-15553.92529202,0.00015,2]
[426407291,1782354722000,2634.79,0.00030118,30]
[426407292,1782354760000,183.54,0.00030561,30]
[426407293,1782354761000,165.18,0.00028082,30]
[426407294,1782354775000,650.0,0.0001,2]
[426407295,1782354829000,2415.22,0.00030911,30]
[426407307,1782354984000,505.4897468,0.00030136,120]
[426407309,1782355026000,979.58,9.874e-05,2]
[426407310,1782355113000,251.32,0.00031407,120]
[426407311,1782355139000,500.0,0.00030136,120]
[426407312,1782355139000,565.90063452,0.00030136,120]
[426407314,1782355155000,816.24,9.958e-05,2]
[426407313,1782355155000,816.24,9.775e-05,2]
[426407315,1782355218000,306.0,0.00028715,30]
[426407316,1782355219000,306.0,0.00029715,30]
[426407317,1782355220000,306.0,0.00030715,30]
[426407319,1782355304000,587.69,9.964e-05,2]
[426407318,1782355304000,587.69,9.736e-05,2]
[426407320,1782355370000,506.0376133,0.00030136,120]
[426407321,1782355429000,699.64,9.637e-05,2]
[426407322,1782355430000,699.64,9.788e-05,2]
[426407323,1782355431000,699.64,9.938e-05,2]
[426407324,1782355482000,172.84,9.95e-05,2]
[426407325,1782355517000,282.14351886,0.00031506,120]
[426407326,1782355523000,157.71186153,0.00031506,120]
[426407327,1782355525000,151.0,0.00031506,120]
[426407328,1782355526000,151.8635949,0.00031506,120]
[426407329,1782355527000,155.17102467,0.00031506,120]
[426407331,1782355529000,166.0,0.00031506,120]
[426407330,1782355529000,166.0,0.00031506,120]
[426407332,1782355566000,855.48,9.944e-05,2]
[426407356,1782355749000,1539.0,0.00031507,30]
[426407393,1782355802000,-3258.27039761,0.00010039,2]
[426407392,1782355802000,-170.02474081,0.00010039,2]
[426407391,1782355802000,-47.58488313,0.00010039,2]
[426407390,1782355802000,-217.60962394,0.00010039,2]
[426407389,1782355802000,-217.60962394,0.00010039,2]
[426407403,1782355831000,-123.55746072,0.00010064,2]
[426407401,1782355831000,-300.0,0.00010039,2]
[426407402,1782355831000,-462.12488754,0.00010039,2]
[426407400,1782355831000,-486.90471485,0.00010039,2]
[426407406,1782355831000,-816.24,0.00010141,2]
[426407407,1782355831000,-150.0,0.00010179,2]
[426407404,1782355831000,-172.20470019,0.00010064,2]
[426407405,1782355831000,-699.64,0.00010089,2]
[426407475,1782355832000,-979.49,0.00011026,2]
[426407441,1782355832000,-225.5,0.00010705,2]
[426407451,1782355832000,-300.0,0.00010798,2]
[426407449,1782355832000,-300.0,0.00010798,2]
[426407450,1782355832000,-300.0,0.00010798,2]
[426407448,1782355832000,-300.0,0.00010798,2]
[426407452,1782355832000,-300.0,0.00010798,2]
[426407458,1782355832000,-200.0,0.00010798,2]
[426407457,1782355832000,-200.0,0.00010798,2]
[426407456,1782355832000,-200.0,0.00010798,2]
[426407453,1782355832000,-300.0,0.00010798,2]
[426407454,1782355832000,-200.0,0.00010798,2]
[426407455,1782355832000,-200.0,0.00010798,2]
[426407474,1782355832000,-979.49,0.00011005,2]
[426407460,1782355832000,-200.0,0.00010798,2]
[426407443,1782355832000,-300.0,0.00010798,2]
[426407463,1782355832000,-200.0,0.00010798,2]
[426407461,1782355832000,-200.0,0.00010798,2]
[426407470,1782355832000,-225.5,0.0001096,2]
[426407471,1782355832000,-216.45114417,0.00010961,2]
[426407468,1782355832000,-166.66,0.00010959,2]
[426407465,1782355832000,-979.58,0.00010799,2]
[426407472,1782355832000,-979.49,0.00010964,2]
[426407469,1782355832000,-150.0,0.00010959,2]
[426407466,1782355832000,-979.49,0.00010922,2]
[426407467,1782355832000,-979.49,0.00010943,2]
[426407473,1782355832000,-979.49,0.00010985,2]
[426407476,1782355832000,-197.14756223,0.00011043,2]
[426407464,1782355832000,-503.5809451,0.00010798,2]
[426407462,1782355832000,-200.0,0.00010798,2]
[426407447,1782355832000,-300.0,0.00010798,2]
[426407437,1782355832000,-587.69,0.00010649,2]
[426407477,1782355832000,-979.49,0.00011047,2]
[426407408,1782355832000,-979.58,0.00010182,2]
[426407409,1782355832000,-587.69,0.00010192,2]
[426407410,1782355832000,-225.5,0.00010195,2]
[426407411,1782355832000,-266.73,0.00010222,2]
[426407413,1782355832000,-699.64,0.0001024,2]
[426407412,1782355832000,-186.43,0.00010232,2]
[426407414,1782355832000,-160.0,0.00010246,2]
[426407415,1782355832000,-155.77,0.00010285,2]
[426407416,1782355832000,-816.24,0.00010325,2]
[426407418,1782355832000,-166.07,0.00010418,2]
[426407417,1782355832000,-699.64,0.0001039,2]
[426407419,1782355832000,-587.69,0.0001042,2]
[426407425,1782355832000,-300.0,0.00010491,2]
[426407423,1782355832000,-300.0,0.00010491,2]
[426407428,1782355832000,-300.0,0.00010491,2]
[426407424,1782355832000,-300.0,0.00010491,2]
[426407426,1782355832000,-300.0,0.00010491,2]
[426407422,1782355832000,-300.0,0.00010491,2]
[426407420,1782355832000,-225.5,0.0001045,2]
[426407421,1782355832000,-979.58,0.00010491,2]
[426407427,1782355832000,-300.0,0.00010491,2]
[426407432,1782355832000,-816.24,0.00010508,2]
[426407431,1782355832000,-300.0,0.00010491,2]
[426407433,1782355832000,-699.64,0.00010541,2]
[426407429,1782355832000,-300.0,0.00010491,2]
[426407430,1782355832000,-300.0,0.00010491,2]
[426407446,1782355832000,-300.0,0.00010798,2]
[426407439,1782355832000,-816.24,0.00010691,2]
[426407444,1782355832000,-300.0,0.00010798,2]
[426407478,1782355832000,-979.49,0.00011068,2]
[426407459,1782355832000,-200.0,0.00010798,2]
[426407484,1782355832000,-979.49,0.00011173,2]
[426407517,1782355832000,-200.0,0.00011256,2]
[426407513,1782355832000,-200.0,0.00011256,2]
[426407516,1782355832000,-200.0,0.00011256,2]
[426407525,1782355832000,-200.0,0.00011277,2]
[426407523,1782355832000,-322.28966609,0.00011276,2]
[426407524,1782355832000,-200.0,0.00011277,2]
[426407519,1782355832000,-200.0,0.00011256,2]
[426407522,1782355832000,-200.0,0.00011256,2]
[426407520,1782355832000,-200.0,0.00011256,2]
[426407526,1782355832000,-200.0,0.00011277,2]
[426407518,1782355832000,-200.0,0.00011256,2]
[426407521,1782355832000,-200.0,0.00011256,2]
[426407528,1782355832000,-200.0,0.00011277,2]
[426407527,1782355832000,-200.0,0.00011277,2]
[426407529,1782355832000,-200.0,0.00011277,2]
[426407533,1782355832000,-200.0,0.00011277,2]
[426407535,1782355832000,-300.0,0.00011277,2]
[426407534,1782355832000,-300.0,0.00011277,2]
[426407532,1782355832000,-200.0,0.00011277,2]
[426407536,1782355832000,-300.0,0.00011277,2]
[426407531,1782355832000,-200.0,0.00011277,2]
[426407538,1782355832000,-300.0,0.00011277,2]
[426407539,1782355832000,-300.0,0.00011277,2]
[426407537,1782355832000,-300.0,0.00011277,2]
[426407541,1782355832000,-300.0,0.00011277,2]
[426407542,1782355832000,-300.0,0.00011277,2]
[426407540,1782355832000,-300.0,0.00011277,2]
[426407543,1782355832000,-300.0,0.00011277,2]
[426407482,1782355832000,-979.49,0.00011131,2]
[426407514,1782355832000,-200.0,0.00011256,2]
[426407515,1782355832000,-200.0,0.00011256,2]
[426407530,1782355832000,-200.0,0.00011277,2]
[426407512,1782355832000,-300.0,0.00011256,2]
[426407480,1782355832000,-979.49,0.00011089,2]
[426407507,1782355832000,-300.0,0.00011256,2]
[426407483,1782355832000,-979.49,0.00011152,2]
[426407481,1782355832000,-979.49,0.0001111,2]
[426407485,1782355832000,-166.66,0.00011178,2]
[426407479,1782355832000,-166.66,0.00011068,2]
[426407486,1782355832000,-255.0,0.00011187,2]
[426407491,1782355832000,-979.49,0.00011235,2]
[426407490,1782355832000,-225.5,0.00011215,2]
[426407489,1782355832000,-979.49,0.00011214,2]
[426407488,1782355832000,-979.49,0.00011194,2]
[426407492,1782355832000,-300.0,0.00011235,2]
[426407497,1782355832000,-300.0,0.00011235,2]
[426407496,1782355832000,-300.0,0.00011235,2]
[426407494,1782355832000,-300.0,0.00011235,2]
[426407487,1782355832000,-855.48,0.00011188,2]
[426407495,1782355832000,-300.0,0.00011235,2]
[426407511,1782355832000,-300.0,0.00011256,2]
[426407493,1782355832000,-300.0,0.00011235,2]
[426407509,1782355832000,-300.0,0.00011256,2]
[426407508,1782355832000,-300.0,0.00011256,2]
[426407505,1782355832000,-300.0,0.00011256,2]
[426407506,1782355832000,-300.0,0.00011256,2]
[426407500,1782355832000,-300.0,0.00011235,2]
[426407510,1782355832000,-300.0,0.00011256,2]
[426407503,1782355832000,-300.0,0.00011256,2]
[426407502,1782355832000,-979.49,0.00011256,2]
[426407501,1782355832000,-300.0,0.00011235,2]
[426407499,1782355832000,-300.0,0.00011235,2]
[426407498,1782355832000,-300.0,0.00011235,2]
[426407504,1782355832000,-300.0,0.00011256,2]
[426407562,1782355833000,-300.0,0.00011277,2]
[426407559,1782355833000,-300.0,0.00011277,2]
[426407563,1782355833000,-300.0,0.00011277,2]
[426407565,1782355833000,-14105.89154677,0.00011277,2]
[426407566,1782355833000,-979.49,0.00011277,2]
[426407564,1782355833000,-872.22513425,0.00011277,2]
[426407572,1782355833000,-861.46640892,0.00011372,2]
[426407571,1782355833000,-979.49,0.00011361,2]
[426407569,1782355833000,-979.49,0.00011319,2]
[426407567,1782355833000,-166.66,0.00011288,2]
[426407568,1782355833000,-979.49,0.00011298,2]
[426407557,1782355833000,-300.0,0.00011277,2]
[426407570,1782355833000,-979.49,0.0001134,2]
[426407561,1782355833000,-300.0,0.00011277,2]
[426407544,1782355833000,-200.0,0.00011277,2]
[426407560,1782355833000,-300.0,0.00011277,2]
[426407556,1782355833000,-300.0,0.00011277,2]
[426407555,1782355833000,-300.0,0.00011277,2]
[426407554,1782355833000,-300.0,0.00011277,2]
[426407553,1782355833000,-200.0,0.00011277,2]
[426407552,1782355833000,-200.0,0.00011277,2]
[426407551,1782355833000,-200.0,0.00011277,2]
[426407550,1782355833000,-200.0,0.00011277,2]
[426407549,1782355833000,-200.0,0.00011277,2]
[426407545,1782355833000,-200.0,0.00011277,2]
[426407546,1782355833000,-200.0,0.00011277,2]
[426407548,1782355833000,-200.0,0.00011277,2]
[426407547,1782355833000,-200.0,0.00011277,2]
[426407573,1782355833000,-151.0,0.00011377,2]
[426407558,1782355833000,-300.0,0.00011277,2]
[426407576,1782355833000,-979.49,0.00011382,2]
[426407578,1782355833000,-979.49,0.00011403,2]
[426407574,1782355833000,-150.0,0.00011377,2]
[426407577,1782355833000,-166.66,0.00011397,2]
[426407605,1782355833000,-557.67498214,0.00012087,2]
[426407602,1782355833000,-320.124,0.00012087,2]
[426407606,1782355833000,-387.105,0.00012087,2]
[426407603,1782355833000,-4092.17397182,0.00012087,2]
[426407607,1782355833000,-546.276,0.00012087,2]
[426407599,1782355833000,-5397.84,0.00012087,2]
[426407601,1782355833000,-3298.72948081,0.00012087,2]
[426407598,1782355833000,-150.99,0.00012087,2]
[426407600,1782355833000,-1792.92096189,0.00012087,2]
[426407597,1782355833000,-14105.89154669,0.00012082,2]
[426407590,1782355833000,-979.49,0.00011549,2]
[426407593,1782355833000,-172.84,0.00011609,2]
[426407592,1782355833000,-979.49,0.00011591,2]
[426407591,1782355833000,-979.49,0.0001157,2]
[426407604,1782355833000,-496.04158548,0.00012087,2]
[426407594,1782355833000,-14105.89154669,0.0001168,2]
[426407575,1782355833000,-151.0,0.00011377,2]
[426407596,1782355833000,-11772.11409162,0.00012038,2]
[426407584,1782355833000,-150.0,0.00011477,2]
[426407583,1782355833000,-150.0,0.00011477,2]
[426407580,1782355833000,-979.49,0.00011444,2]
[426407581,1782355833000,-979.49,0.00011465,2]
[426407582,1782355833000,-2000.0,0.00011477,2]
[426407585,1782355833000,-153.0,0.00011477,2]
[426407587,1782355833000,-166.66,0.00011507,2]
[426407589,1782355833000,-979.49,0.00011528,2]
[426407586,1782355833000,-979.49,0.00011486,2]
[426407588,1782355833000,-979.49,0.00011507,2]
[426407579,1782355833000,-979.49,0.00011423,2]
[426407595,1782355833000,-155.77,0.00011999,2]
[426407650,1782355838000,-150.0,0.0001355,2]
[426407644,1782355838000,-150.0,0.00013488,2]
[426407645,1782355838000,-150.0,0.00013488,2]
[426407647,1782355838000,-736.0,0.00013508,2]
[426407648,1782355838000,-150.0,0.00013519,2]
[426407643,1782355838000,-150.81354779,0.00013488,2]
[426407649,1782355838000,-150.0,0.00013523,2]
[426407641,1782355838000,-150.0,0.00013488,2]
[426407651,1782355838000,-150.0,0.0001355,2]
[426407646,1782355838000,-150.0,0.00013488,2]
[426407659,1782355838000,-150.0,0.00013624,2]
[426407652,1782355838000,-150.0,0.00013559,2]
[426407656,1782355838000,-150.0,0.00013595,2]
[426407655,1782355838000,-150.0,0.00013588,2]
[426407654,1782355838000,-150.0,0.00013581,2]
[426407658,1782355838000,-150.0,0.00013613,2]
[426407662,1782355838000,-150.0,0.0001363,2]
[426407660,1782355838000,-11772.11409155,0.00013628,2]
[426407657,1782355838000,-150.0,0.00013613,2]
[426407661,1782355838000,-150.0,0.0001363,2]
[426407640,1782355838000,-150.0,0.00013488,2]
[426407653,1782355838000,-150.0,0.00013559,2]
[426407642,1782355838000,-150.56908181,0.00013488,2]
[426407627,1782355838000,-434.248084,0.00012635,2]
[426407633,1782355838000,-250.0,0.00013264,2]
[426407663,1782355838000,-150.0,0.00013644,2]
[426407616,1782355838000,-264.26011174,0.00010798,2]
[426407617,1782355838000,-235.73988826,0.00010798,2]
[426407618,1782355838000,-8508.93401786,0.00012087,2]
[426407619,1782355838000,-69770.05,0.00012087,2]
[426407626,1782355838000,-14105.89154669,0.00012485,2]
[426407620,1782355838000,-9999.99,0.00012087,2]
[426407621,1782355838000,-259.79,0.00012087,2]
[426407624,1782355838000,-11772.11409155,0.00012356,2]
[426407625,1782355838000,-855.48,0.00012431,2]
[426407622,1782355838000,-166.07,0.00012137,2]
[426407623,1782355838000,-433.0,0.00012296,2]
[426407630,1782355838000,-11772.11409155,0.00012992,2]
[426407628,1782355838000,-11772.11409155,0.00012674,2]
[426407632,1782355838000,-502.0,0.00013096,2]
[426407629,1782355838000,-14105.89154669,0.00012887,2]
[426407631,1782355838000,-872.22513424,0.00013089,2]
[426407634,1782355838000,-172.84,0.00013267,2]
[426407638,1782355838000,-150.0,0.00013488,2]
[426407637,1782355838000,-150.0,0.00013488,2]
[426407636,1782355838000,-11772.11409155,0.0001331,2]
[426407639,1782355838000,-150.0,0.00013488,2]
[426407664,1782355838000,-150.0,0.00013666,2]
[426407635,1782355838000,-14105.89154669,0.0001329,2]
[426407665,1782355838000,-855.48,0.00013674,2]
[426407693,1782355838000,-500.0,0.00013698,2]
[426407692,1782355838000,-500.0,0.00013698,2]
[426407694,1782355838000,-500.0,0.00013698,2]
[426407700,1782355838000,-500.0,0.00013698,2]
[426407698,1782355838000,-300.82288195,0.00013698,2]
[426407699,1782355838000,-500.0,0.00013698,2]
[426407695,1782355838000,-500.0,0.00013698,2]
[426407701,1782355838000,-500.0,0.00013698,2]
[426407696,1782355838000,-500.0,0.00013698,2]
[426407697,1782355838000,-502.15597307,0.00013698,2]
[426407712,1782355838000,-500.0,0.00013698,2]
[426407702,1782355838000,-451.69207286,0.00013698,2]
[426407705,1782355838000,-505.50364799,0.00013698,2]
[426407706,1782355838000,-500.0,0.00013698,2]
[426407707,1782355838000,-500.0,0.00013698,2]
[426407710,1782355838000,-500.0,0.00013698,2]
[426407711,1782355838000,-510.51402326,0.00013698,2]
[426407713,1782355838000,-500.0,0.00013698,2]
[426407709,1782355838000,-159.78507674,0.00013698,2]
[426407708,1782355838000,-500.0,0.00013698,2]
[426407714,1782355838000,-299.90077508,0.00013698,2]
[426407666,1782355838000,-150.0,0.00013675,2]
[426407704,1782355838000,-523.76613813,0.00013698,2]
[426407690,1782355838000,-500.0,0.00013698,2]
[426407703,1782355838000,-500.0,0.00013698,2]
[426407684,1782355838000,-500.0,0.00013698,2]
[426407691,1782355838000,-500.0,0.00013698,2]
[426407668,1782355838000,-150.0,0.00013675,2]
[426407667,1782355838000,-150.0,0.00013675,2]
[426407669,1782355838000,-150.0,0.00013687,2]
[426407670,1782355838000,-14105.89154669,0.00013692,2]
[426407672,1782355838000,-500.0,0.00013698,2]
[426407675,1782355838000,-1156.05456003,0.00013698,2]
[426407671,1782355838000,-500.0,0.00013698,2]
[426407674,1782355838000,-3683.1224822,0.00013698,2]
[426407676,1782355838000,-571.46266564,0.00013698,2]
[426407678,1782355838000,-500.0,0.00013698,2]
[426407673,1782355838000,-1624.83057282,0.00013698,2]
[426407686,1782355838000,-500.0,0.00013698,2]
[426407679,1782355838000,-500.0,0.00013698,2]
[426407680,1782355838000,-500.0,0.00013698,2]
[426407681,1782355838000,-500.0,0.00013698,2]
[426407683,1782355838000,-504.7133185,0.00013698,2]
[426407689,1782355838000,-500.0,0.00013698,2]
[426407685,1782355838000,-500.0,0.00013698,2]
[426407682,1782355838000,-500.0,0.00013698,2]
[426407687,1782355838000,-500.0,0.00013698,2]
[426407688,1782355838000,-500.0,0.00013698,2]
[426407677,1782355838000,-500.0,0.00013698,2]
[426407755,1782355839000,-766.47,0.00013698,2]
[426407747,1782355839000,-766.47,0.00013698,2]
[426407754,1782355839000,-766.47,0.00013698,2]
[426407757,1782355839000,-892.94,0.00013698,2]
[426407752,1782355839000,-766.47,0.00013698,2]
[426407753,1782355839000,-766.47,0.00013698,2]
[426407746,1782355839000,-766.47,0.00013698,2]
[426407751,1782355839000,-766.47,0.00013698,2]
[426407750,1782355839000,-766.47,0.00013698,2]
[426407749,1782355839000,-766.47,0.00013698,2]
[426407763,1782355839000,-892.94,0.00013698,2]
[426407745,1782355839000,-766.47,0.00013698,2]
[426407761,1782355839000,-892.94,0.00013698,2]
[426407769,1782355839000,-892.94,0.00013698,2]
[426407762,1782355839000,-892.94,0.00013698,2]
[426407760,1782355839000,-892.94,0.00013698,2]
[426407758,1782355839000,-892.94,0.00013698,2]
[426407759,1782355839000,-892.94,0.00013698,2]
[426407765,1782355839000,-892.94,0.00013698,2]
[426407766,1782355839000,-892.94,0.00013698,2]
[426407764,1782355839000,-892.94,0.00013698,2]
[426407767,1782355839000,-892.94,0.00013698,2]
[426407768,1782355839000,-892.94,0.00013698,2]
[426407773,1782355839000,-892.94,0.00013698,2]
[426407774,1782355839000,-500.0,0.00013698,2]
[426407770,1782355839000,-892.94,0.00013698,2]
[426407744,1782355839000,-766.47,0.00013698,2]
[426407756,1782355839000,-892.94,0.00013698,2]
[426407748,1782355839000,-766.47,0.00013698,2]
[426407716,1782355839000,-500.0,0.00013698,2]
[426407740,1782355839000,-500.0,0.00013698,2]
[426407715,1782355839000,-500.0,0.00013698,2]
[426407719,1782355839000,-500.0,0.00013698,2]
[426407718,1782355839000,-500.0,0.00013698,2]
[426407717,1782355839000,-500.0,0.00013698,2]
[426407772,1782355839000,-892.94,0.00013698,2]
[426407721,1782355839000,-500.0,0.00013698,2]
[426407720,1782355839000,-500.0,0.00013698,2]
[426407725,1782355839000,-500.0,0.00013698,2]
[426407726,1782355839000,-500.0,0.00013698,2]
[426407723,1782355839000,-524.84128834,0.00013698,2]
[426407722,1782355839000,-500.0,0.00013698,2]
[426407724,1782355839000,-500.0,0.00013698,2]
[426407730,1782355839000,-201.26306856,0.00013698,2]
[426407728,1782355839000,-500.0,0.00013698,2]
[426407727,1782355839000,-500.0,0.00013698,2]
[426407731,1782355839000,-500.0,0.00013698,2]
[426407729,1782355839000,-500.0,0.00013698,2]
[426407734,1782355839000,-500.0,0.00013698,2]
[426407737,1782355839000,-766.47,0.00013698,2]
[426407733,1782355839000,-766.47,0.00013698,2]
[426407732,1782355839000,-500.0,0.00013698,2]
[426407738,1782355839000,-500.0,0.00013698,2]
[426407739,1782355839000,-766.47,0.00013698,2]
[426407735,1782355839000,-766.47,0.00013698,2]
[426407736,1782355839000,-500.0,0.00013698,2]
[426407742,1782355839000,-766.47,0.00013698,2]
[426407741,1782355839000,-766.47,0.00013698,2]
[426407743,1782355839000,-310.56156159,0.00013698,2]
[426407775,1782355839000,-500.0,0.00013698,2]
[426407771,1782355839000,-892.94,0.00013698,2]
[426407776,1782355839000,-500.0,0.00013698,2]
[426407808,1782355839000,-886.07,0.00013698,2]
[426407810,1782355839000,-886.07,0.00013698,2]
[426407811,1782355839000,-886.07,0.00013698,2]
[426407812,1782355839000,-886.07,0.00013698,2]
[426407815,1782355839000,-886.07,0.00013698,2]
[426407816,1782355839000,-886.07,0.00013698,2]
[426407813,1782355839000,-886.07,0.00013698,2]
[426407817,1782355839000,-500.0,0.00013698,2]
[426407814,1782355839000,-886.07,0.00013698,2]
[426407819,1782355839000,-500.0,0.00013698,2]
[426407820,1782355839000,-500.0,0.00013698,2]
[426407818,1782355839000,-500.0,0.00013698,2]
[426407823,1782355839000,-500.0,0.00013698,2]
[426407809,1782355839000,-886.07,0.00013698,2]
[426407822,1782355839000,-500.0,0.00013698,2]
[426407824,1782355839000,-500.0,0.00013698,2]
[426407821,1782355839000,-500.0,0.00013698,2]
[426407827,1782355839000,-500.0,0.00013698,2]
[426407826,1782355839000,-500.0,0.00013698,2]
[426407828,1782355839000,-500.0,0.00013698,2]
[426407829,1782355839000,-500.0,0.00013698,2]
[426407832,1782355839000,-500.0,0.00013698,2]
[426407831,1782355839000,-500.0,0.00013698,2]
[426407830,1782355839000,-500.0,0.00013698,2]
[426407833,1782355839000,-500.0,0.00013698,2]
[426407780,1782355839000,-500.0,0.00013698,2]
[426407835,1782355839000,-500.0,0.00013698,2]
[426407834,1782355839000,-571.2639509,0.00013698,2]
[426407825,1782355839000,-500.0,0.00013698,2]
[426407806,1782355839000,-886.07,0.00013698,2]
[426407836,1782355839000,-500.0,0.00013698,2]
[426407804,1782355839000,-886.07,0.00013698,2]
[426407807,1782355839000,-886.07,0.00013698,2]
[426407777,1782355839000,-500.0,0.00013698,2]
[426407778,1782355839000,-500.0,0.00013698,2]
[426407782,1782355839000,-1385.33,0.00013698,2]
[426407783,1782355839000,-1385.33,0.00013698,2]
[426407786,1782355839000,-1385.33,0.00013698,2]
[426407781,1782355839000,-502.35436948,0.00013698,2]
[426407784,1782355839000,-1385.33,0.00013698,2]
[426407788,1782355839000,-1385.33,0.00013698,2]
[426407785,1782355839000,-1385.33,0.00013698,2]
[426407787,1782355839000,-1385.33,0.00013698,2]
[426407792,1782355839000,-1385.33,0.00013698,2]
[426407790,1782355839000,-1385.33,0.00013698,2]
[426407779,1782355839000,-500.0,0.00013698,2]
[426407791,1782355839000,-1385.33,0.00013698,2]
[426407803,1782355839000,-886.07,0.00013698,2]
[426407805,1782355839000,-886.07,0.00013698,2]
[426407802,1782355839000,-886.07,0.00013698,2]
[426407801,1782355839000,-886.07,0.00013698,2]
[426407789,1782355839000,-1385.33,0.00013698,2]
[426407795,1782355839000,-1385.33,0.00013698,2]
[426407799,1782355839000,-886.07,0.00013698,2]
[426407794,1782355839000,-1385.33,0.00013698,2]
[426407793,1782355839000,-1385.33,0.00013698,2]
[426407800,1782355839000,-886.07,0.00013698,2]
[426407797,1782355839000,-1385.33,0.00013698,2]
[426407798,1782355839000,-303.14794962,0.00013698,2]
[426407796,1782355839000,-1385.33,0.00013698,2]
[426407878,1782355840000,-500.0,0.00013698,2]
[426407877,1782355840000,-500.0,0.00013698,2]
[426407876,1782355840000,-500.0,0.00013698,2]
[426407875,1782355840000,-500.0,0.00013698,2]
[426407867,1782355840000,-963.42,0.00013698,2]
[426407872,1782355840000,-500.0,0.00013698,2]
[426407871,1782355840000,-500.0,0.00013698,2]
[426407873,1782355840000,-607.94453045,0.00013698,2]
[426407870,1782355840000,-500.0,0.00013698,2]
[426407868,1782355840000,-500.0,0.00013698,2]
[426407869,1782355840000,-500.0,0.00013698,2]
[426407874,1782355840000,-500.0,0.00013698,2]
[426407882,1782355840000,-500.0,0.00013698,2]
[426407881,1782355840000,-500.0,0.00013698,2]
[426407883,1782355840000,-500.0,0.00013698,2]
[426407885,1782355840000,-516.40144623,0.00013698,2]